[Event "Titled Tuesday Blitz January 31 Early 2023"]
[White "Ambartsumova, Karina"]
[Black "Myshakov, Fyodor"]
[WhiteFideId "4166299"]
[BlackFideId "14111284"]
[WhiteElo "2393"]
[BlackElo "2292"]
[Result "1-0"]
[Round "10"]
[TimeControl "180+2"]
[Date "2023.01.31"]
[WhiteClock "0:00:52"]
[BlackClock "0:00:53"]

1. e4 {[%clk 0:03:00]}  c6 {[%clk 0:02:59]} 2. Ne2 {[%clk 0:02:38]}  d5 {[%clk 0:02:58]} 3. e5 {[%clk 0:02:39]}  Bf5 {[%clk 0:02:58]} 4. Ng3 {[%clk 0:02:39]}  Bg6 {[%clk 0:02:55]} 5. h4 {[%clk 0:02:38]}  h6 {[%clk 0:02:51]} 6. h5 {[%clk 0:02:37]}  Bh7 {[%clk 0:02:51]} 7. e6 {[%clk 0:02:37]}  fxe6 {[%clk 0:02:47]} 8. d4 {[%clk 0:02:37]}  e5 {[%clk 0:02:43]} 9. dxe5 {[%clk 0:02:33]}  e6 {[%clk 0:02:43]} 10. Bd3 {[%clk 0:02:32]}  Bf5 {[%clk 0:02:42]} 11. Nxf5 {[%clk 0:02:30]}  exf5 {[%clk 0:02:42]} 12. Bxf5 {[%clk 0:02:31]}  Ne7 {[%clk 0:02:43]} 13. Qg4 {[%clk 0:02:23]}  Qc7 {[%clk 0:02:37]} 14. O-O {[%clk 0:02:04]}  Nxf5 {[%clk 0:02:25]} 15. Qxf5 {[%clk 0:02:04]}  Bc5 {[%clk 0:02:20]} 16. Qe6+ {[%clk 0:01:45]}  Kd8 {[%clk 0:01:53]} 17. Bf4 {[%clk 0:01:37]}  Rf8 {[%clk 0:01:49]} 18. Bg3 {[%clk 0:01:29]}  Qe7 {[%clk 0:01:49]} 19. Qg4 {[%clk 0:01:21]}  Qf7 {[%clk 0:01:39]} 20. e6 {[%clk 0:01:08]}  Qf5 {[%clk 0:01:32]} 21. Qxg7 {[%clk 0:01:08]}  Qxe6 {[%clk 0:01:28]} 22. Qxb7 {[%clk 0:01:01]}  Qe2 {[%clk 0:00:57]} 23. Nc3 {[%clk 0:00:56]}  Qg4 {[%clk 0:00:53]} 24. Qc7+ {[%clk 0:00:52]} 1-0


[Site "https://www.chess.com"]

[Event "Titled Tuesday Blitz January 31 Early 2023"]
[White "Al-Tarboush, Ward"]
[Black "Belov, Alexei"]
[WhiteFideId "7601450"]
[BlackFideId "4128206"]
[WhiteElo "2256"]
[BlackElo "2421"]
[Result "1-0"]
[Round "10"]
[TimeControl "180+2"]
[Date "2023.01.31"]
[WhiteClock "0:01:49"]
[BlackClock "0:01:36"]

1. e4 {[%clk 0:02:09]}  e6 {[%clk 0:02:58]} 2. d4 {[%clk 0:02:08]}  d5 {[%clk 0:02:59]} 3. exd5 {[%clk 0:02:09]}  exd5 {[%clk 0:02:59]} 4. Bd3 {[%clk 0:02:09]}  Nf6 {[%clk 0:02:59]} 5. Bg5 {[%clk 0:02:09]}  c5 {[%clk 0:02:58]} 6. Nf3 {[%clk 0:02:09]}  Nc6 {[%clk 0:02:57]} 7. O-O {[%clk 0:02:08]}  cxd4 {[%clk 0:02:50]} 8. Re1+ {[%clk 0:02:07]}  Be6 {[%clk 0:02:50]} 9. Bf5 {[%clk 0:02:06]}  Qd7 {[%clk 0:02:41]} 10. Bxf6 {[%clk 0:02:05]}  gxf6 {[%clk 0:02:40]} 11. Nxd4 {[%clk 0:02:04]}  Nxd4 {[%clk 0:02:14]} 12. Qxd4 {[%clk 0:02:05]}  Be7 {[%clk 0:02:14]} 13. Nc3 {[%clk 0:02:04]}  Bxf5 {[%clk 0:01:53]} 14. Nxd5 {[%clk 0:02:02]}  Be6 {[%clk 0:01:50]} 15. Nxf6+ {[%clk 0:02:02]}  Bxf6 {[%clk 0:01:50]} 16. Qxf6 {[%clk 0:02:02]}  Rg8 {[%clk 0:01:50]} 17. Rad1 {[%clk 0:01:57]}  Qc6 {[%clk 0:01:50]} 18. g3 {[%clk 0:01:53]}  Rg6 {[%clk 0:01:41]} 19. Qh8+ {[%clk 0:01:51]}  Ke7 {[%clk 0:01:37]} 20. Qxa8 {[%clk 0:01:50]}  Kf6 {[%clk 0:01:37]} 21. Qh8+ {[%clk 0:01:50]}  Ke7 {[%clk 0:01:36]} 22. Qd8# {[%clk 0:01:49]} 1-0


[Site "https://www.chess.com"]

[Event "Titled Tuesday Blitz January 31 Early 2023"]
[White "Fiorito, Francisco"]
[Black "Forgacs, Attila Jr."]
[WhiteFideId "180165"]
[BlackFideId "773654"]
[WhiteElo "2305"]
[BlackElo "2264"]
[Result "0-1"]
[Round "10"]
[TimeControl "180+2"]
[Date "2023.01.31"]
[WhiteClock "0:00:14"]
[BlackClock "0:00:20"]

1. e4 {[%clk 0:03:00]}  e5 {[%clk 0:02:59]} 2. Nf3 {[%clk 0:03:01]}  Nc6 {[%clk 0:03:00]} 3. Bb5 {[%clk 0:03:01]}  a6 {[%clk 0:03:00]} 4. Ba4 {[%clk 0:03:01]}  Nf6 {[%clk 0:03:01]} 5. O-O {[%clk 0:03:01]}  Be7 {[%clk 0:03:01]} 6. Re1 {[%clk 0:03:01]}  b5 {[%clk 0:03:02]} 7. Bb3 {[%clk 0:03:01]}  O-O {[%clk 0:03:03]} 8. c3 {[%clk 0:03:01]}  d5 {[%clk 0:03:03]} 9. exd5 {[%clk 0:02:59]}  Nxd5 {[%clk 0:03:04]} 10. Nxe5 {[%clk 0:02:54]}  Nxe5 {[%clk 0:03:05]} 11. Rxe5 {[%clk 0:02:54]}  c6 {[%clk 0:03:06]} 12. Bxd5 {[%clk 0:02:51]}  cxd5 {[%clk 0:03:04]} 13. d4 {[%clk 0:02:49]}  Bd6 {[%clk 0:03:02]} 14. Re1 {[%clk 0:02:49]}  Qh4 {[%clk 0:03:01]} 15. g3 {[%clk 0:02:49]}  Qh3 {[%clk 0:03:01]} 16. Qf3 {[%clk 0:02:46]}  Bg4 {[%clk 0:02:45]} 17. Qg2 {[%clk 0:02:46]}  Qh5 {[%clk 0:02:45]} 18. Be3 {[%clk 0:02:41]}  Bf3 {[%clk 0:02:39]} 19. Qf1 {[%clk 0:02:41]}  f5 {[%clk 0:02:39]} 20. Nd2 {[%clk 0:01:57]}  f4 {[%clk 0:02:38]} 21. Nxf3 {[%clk 0:01:57]}  fxe3 {[%clk 0:02:36]} 22. Rxe3 {[%clk 0:01:56]}  Rxf3 {[%clk 0:02:36]} 23. Qe2 {[%clk 0:01:56]}  Raf8 {[%clk 0:02:33]} 24. Re1 {[%clk 0:01:55]}  Qf5 {[%clk 0:02:15]} 25. Rxf3 {[%clk 0:01:54]}  Qxf3 {[%clk 0:02:15]} 26. Qe6+ {[%clk 0:01:55]}  Kh8 {[%clk 0:02:15]} 27. Rf1 {[%clk 0:01:50]}  Bb8 {[%clk 0:01:53]} 28. Qxa6 {[%clk 0:01:50]}  Qe2 {[%clk 0:01:48]} 29. a4 {[%clk 0:01:42]}  Qxb2 {[%clk 0:01:42]} 30. axb5 {[%clk 0:01:42]}  Qxc3 {[%clk 0:01:38]} 31. Qb6 {[%clk 0:01:42]}  Qc4 {[%clk 0:01:29]} 32. Re1 {[%clk 0:01:39]}  Bc7 {[%clk 0:01:24]} 33. Qc5 {[%clk 0:01:19]}  Rb8 {[%clk 0:01:11]} 34. Re7 {[%clk 0:01:02]}  Ba5 {[%clk 0:00:37]} 35. b6 {[%clk 0:00:36]}  Bb4 {[%clk 0:00:26]} 36. Rb7 {[%clk 0:00:14]}  Rxb7 {[%clk 0:00:20]} 0-1


[Site "https://www.chess.com"]

[Event "Titled Tuesday Blitz January 31 Early 2023"]
[White "Martic, Ivan"]
[Black "Melikhov, Evgeny V."]
[WhiteFideId "929301"]
[BlackFideId "4122046"]
[WhiteElo "2301"]
[BlackElo "2269"]
[Result "0-1"]
[Round "10"]
[TimeControl "180+2"]
[Date "2023.01.31"]
[WhiteClock "0:00:09"]
[BlackClock "0:00:08"]

1. e4 {[%clk 0:03:00]}  e5 {[%clk 0:02:58]} 2. Nc3 {[%clk 0:02:59]}  Nf6 {[%clk 0:02:57]} 3. g3 {[%clk 0:02:59]}  d5 {[%clk 0:02:56]} 4. exd5 {[%clk 0:02:59]}  Nxd5 {[%clk 0:02:57]} 5. Bg2 {[%clk 0:03:00]}  Nxc3 {[%clk 0:02:57]} 6. bxc3 {[%clk 0:03:00]}  Bd6 {[%clk 0:02:57]} 7. d3 {[%clk 0:02:57]}  Nd7 {[%clk 0:02:51]} 8. Nf3 {[%clk 0:02:53]}  O-O {[%clk 0:02:48]} 9. O-O {[%clk 0:02:53]}  Rb8 {[%clk 0:02:42]} 10. Re1 {[%clk 0:02:52]}  Re8 {[%clk 0:02:32]} 11. Rb1 {[%clk 0:02:49]}  b6 {[%clk 0:02:28]} 12. Ng5 {[%clk 0:02:46]}  h6 {[%clk 0:02:17]} 13. Ne4 {[%clk 0:02:41]}  Bb7 {[%clk 0:02:15]} 14. Qh5 {[%clk 0:02:22]}  Nf6 {[%clk 0:02:09]} 15. Nxf6+ {[%clk 0:02:20]}  Qxf6 {[%clk 0:02:08]} 16. Bxb7 {[%clk 0:02:16]}  Rxb7 {[%clk 0:02:09]} 17. Re4 {[%clk 0:02:17]}  c5 {[%clk 0:02:01]} 18. c4 {[%clk 0:02:16]}  Rbe7 {[%clk 0:01:59]} 19. Bb2 {[%clk 0:02:16]}  Kh7 {[%clk 0:01:51]} 20. Rbe1 {[%clk 0:02:15]}  g6 {[%clk 0:01:49]} 21. Qe2 {[%clk 0:02:09]}  h5 {[%clk 0:01:30]} 22. Kg2 {[%clk 0:02:07]}  Qf5 {[%clk 0:01:27]} 23. h3 {[%clk 0:01:58]}  f6 {[%clk 0:01:25]} 24. g4 {[%clk 0:01:58]}  hxg4 {[%clk 0:01:25]} 25. hxg4 {[%clk 0:01:59]}  Qd7 {[%clk 0:01:21]} 26. Rh1+ {[%clk 0:01:58]}  Kg7 {[%clk 0:01:19]} 27. Re3 {[%clk 0:01:53]}  Rh8 {[%clk 0:01:18]} 28. Reh3 {[%clk 0:01:52]}  Rxh3 {[%clk 0:01:17]} 29. Rxh3 {[%clk 0:01:52]}  Qe6 {[%clk 0:01:02]} 30. Bc1 {[%clk 0:01:45]}  e4 {[%clk 0:01:00]} 31. Re3 {[%clk 0:01:32]}  f5 {[%clk 0:00:59]} 32. gxf5 {[%clk 0:01:31]}  gxf5 {[%clk 0:00:59]} 33. Bb2+ {[%clk 0:01:29]}  Be5 {[%clk 0:00:56]} 34. Rg3+ {[%clk 0:01:27]}  Kf8 {[%clk 0:00:49]} 35. Bxe5 {[%clk 0:01:23]}  Qxe5 {[%clk 0:00:50]} 36. Qh5 {[%clk 0:01:18]}  Rf7 {[%clk 0:00:22]} 37. Qh6+ {[%clk 0:00:48]}  Ke7 {[%clk 0:00:22]} 38. Rg8 {[%clk 0:00:46]}  f4 {[%clk 0:00:19]} 39. Qh4+ {[%clk 0:00:43]}  Qf6 {[%clk 0:00:18]} 40. Qxf6+ {[%clk 0:00:41]}  Kxf6 {[%clk 0:00:18]} 41. dxe4 {[%clk 0:00:42]}  Rd7 {[%clk 0:00:18]} 42. Kf3 {[%clk 0:00:39]}  Rd2 {[%clk 0:00:17]} 43. Rf8+ {[%clk 0:00:38]}  Ke6 {[%clk 0:00:14]} 44. Rxf4 {[%clk 0:00:37]}  Rxc2 {[%clk 0:00:14]} 45. Kg4 {[%clk 0:00:31]}  Rxc4 {[%clk 0:00:13]} 46. f3 {[%clk 0:00:30]}  Ra4 {[%clk 0:00:13]} 47. Rf8 {[%clk 0:00:28]}  Rxa2 {[%clk 0:00:12]} 48. f4 {[%clk 0:00:29]}  Rg2+ {[%clk 0:00:12]} 49. Kf3 {[%clk 0:00:29]}  Rg1 {[%clk 0:00:12]} 50. Re8+ {[%clk 0:00:27]}  Kd7 {[%clk 0:00:12]} 51. Ra8 {[%clk 0:00:27]}  c4 {[%clk 0:00:12]} 52. Ke3 {[%clk 0:00:23]}  Rg3+ {[%clk 0:00:11]} 53. Kd4 {[%clk 0:00:20]}  c3 {[%clk 0:00:10]} 54. Rxa7+ {[%clk 0:00:20]}  Kc6 {[%clk 0:00:10]} 55. Ra1 {[%clk 0:00:17]}  c2 {[%clk 0:00:10]} 56. Rc1 {[%clk 0:00:16]}  Rg2 {[%clk 0:00:09]} 57. f5 {[%clk 0:00:16]}  Kd6 {[%clk 0:00:09]} 58. e5+ {[%clk 0:00:16]}  Ke7 {[%clk 0:00:09]} 59. Kd3 {[%clk 0:00:14]}  Rf2 {[%clk 0:00:09]} 60. Ke4 {[%clk 0:00:11]}  b5 {[%clk 0:00:09]} 61. Rh1 {[%clk 0:00:09]}  b4 {[%clk 0:00:08]} 62. Ke3 {[%clk 0:00:09]}  Rxf5 {[%clk 0:00:07]} 63. Kd3 {[%clk 0:00:09]}  b3 {[%clk 0:00:07]} 64. Kc3 {[%clk 0:00:10]}  Rf3+ {[%clk 0:00:07]} 65. Kb2 {[%clk 0:00:10]}  Ke6 {[%clk 0:00:08]} 66. Rh5 {[%clk 0:00:09]}  Re3 {[%clk 0:00:07]} 67. Rh6+ {[%clk 0:00:08]}  Kxe5 {[%clk 0:00:07]} 68. Rh5+ {[%clk 0:00:08]}  Ke4 {[%clk 0:00:07]} 69. Rh4+ {[%clk 0:00:09]}  Kd3 {[%clk 0:00:07]} 70. Rh8 {[%clk 0:00:09]}  Ke2 {[%clk 0:00:07]} 71. Rd8 {[%clk 0:00:07]}  Rc3 {[%clk 0:00:06]} 72. Re8+ {[%clk 0:00:06]}  Kf3 {[%clk 0:00:06]} 73. Rf8+ {[%clk 0:00:06]}  Kg4 {[%clk 0:00:06]} 74. Rg8+ {[%clk 0:00:07]}  Kh5 {[%clk 0:00:06]} 75. Rh8+ {[%clk 0:00:07]}  Kg6 {[%clk 0:00:06]} 76. Rg8+ {[%clk 0:00:08]}  Kf7 {[%clk 0:00:07]} 77. Rg1 {[%clk 0:00:07]}  Rd3 {[%clk 0:00:06]} 78. Rf1+ {[%clk 0:00:05]}  Ke6 {[%clk 0:00:06]} 79. Rh1 {[%clk 0:00:04]}  Rd1 {[%clk 0:00:06]} 80. Rh6+ {[%clk 0:00:03]}  Kf5 {[%clk 0:00:06]} 81. Rh5+ {[%clk 0:00:03]}  Kg6 {[%clk 0:00:06]} 82. Rc5 {[%clk 0:00:04]}  Rb1+ {[%clk 0:00:05]} 83. Ka3 {[%clk 0:00:01]}  c1=Q+ {[%clk 0:00:06]} 84. Rxc1 {[%clk 0:00:01]}  Rxc1 {[%clk 0:00:06]} 85. Kb2 {[%clk 0:00:02]}  Rc6 {[%clk 0:00:06]} 86. Kb1 {[%clk 0:00:03]}  Kf5 {[%clk 0:00:06]} 87. Kb2 {[%clk 0:00:04]}  Ke5 {[%clk 0:00:07]} 88. Ka3 {[%clk 0:00:04]}  Kd4 {[%clk 0:00:07]} 89. Kb2 {[%clk 0:00:05]}  Kc4 {[%clk 0:00:07]} 90. Ka3 {[%clk 0:00:06]}  Ra6+ {[%clk 0:00:06]} 91. Kb2 {[%clk 0:00:07]}  Ra2+ {[%clk 0:00:06]} 92. Kb1 {[%clk 0:00:08]}  Rh2 {[%clk 0:00:07]} 93. Ka1 {[%clk 0:00:08]}  Kc3 {[%clk 0:00:07]} 94. Kb1 {[%clk 0:00:09]}  Rh1# {[%clk 0:00:08]} 0-1


[Site "https://www.chess.com"]

[Event "Titled Tuesday Blitz January 31 Early 2023"]
[White "Erzhanov, Arman"]
[Black "Andreev, Konstantin"]
[WhiteFideId "4138821"]
[BlackFideId "24239305"]
[WhiteElo "2228"]
[BlackElo "2195"]
[Result "1-0"]
[Round "10"]
[TimeControl "180+2"]
[Date "2023.01.31"]
[WhiteClock "0:00:12"]
[BlackClock "0:00:04"]

1. e4 {[%clk 0:02:59]}  c5 {[%clk 0:02:59]} 2. Nf3 {[%clk 0:02:59]}  Nc6 {[%clk 0:02:59]} 3. Bb5 {[%clk 0:02:59]}  e6 {[%clk 0:02:59]} 4. b3 {[%clk 0:02:59]}  Nge7 {[%clk 0:02:58]} 5. Bb2 {[%clk 0:02:59]}  a6 {[%clk 0:02:59]} 6. Bxc6 {[%clk 0:02:59]}  Nxc6 {[%clk 0:03:00]} 7. O-O {[%clk 0:02:59]}  f6 {[%clk 0:03:00]} 8. Nh4 {[%clk 0:02:59]}  Qe7 {[%clk 0:02:51]} 9. f4 {[%clk 0:02:59]}  Qf7 {[%clk 0:02:48]} 10. f5 {[%clk 0:02:48]}  exf5 {[%clk 0:02:44]} 11. Nxf5 {[%clk 0:02:41]}  g6 {[%clk 0:02:35]} 12. Ne3 {[%clk 0:02:14]}  Bg7 {[%clk 0:02:30]} 13. Nc3 {[%clk 0:02:11]}  O-O {[%clk 0:02:25]} 14. Ncd5 {[%clk 0:02:12]}  Nd4 {[%clk 0:02:21]} 15. b4 {[%clk 0:01:18]}  d6 {[%clk 0:02:17]} 16. Nc4 {[%clk 0:01:18]}  Rd8 {[%clk 0:02:04]} 17. Nxd6 {[%clk 0:00:35]}  Rxd6 {[%clk 0:01:58]} 18. bxc5 {[%clk 0:00:35]}  Rxd5 {[%clk 0:01:59]} 19. exd5 {[%clk 0:00:36]}  Qxd5 {[%clk 0:01:59]} 20. c3 {[%clk 0:00:31]}  Nf5 {[%clk 0:01:57]} 21. d4 {[%clk 0:00:31]}  Bd7 {[%clk 0:01:55]} 22. Qf3 {[%clk 0:00:27]}  Qxf3 {[%clk 0:01:50]} 23. Rxf3 {[%clk 0:00:28]}  Bc6 {[%clk 0:01:49]} 24. Rff1 {[%clk 0:00:27]}  Bh6 {[%clk 0:01:50]} 25. Rae1 {[%clk 0:00:26]}  Kf7 {[%clk 0:01:39]} 26. c4 {[%clk 0:00:26]}  Ne3 {[%clk 0:01:38]} 27. d5 {[%clk 0:00:23]}  Nxf1 {[%clk 0:01:29]} 28. dxc6 {[%clk 0:00:23]}  Nd2 {[%clk 0:01:19]} 29. cxb7 {[%clk 0:00:24]}  Rb8 {[%clk 0:01:19]} 30. c6 {[%clk 0:00:24]}  Bf4 {[%clk 0:01:18]} 31. Bc1 {[%clk 0:00:24]}  Rd8 {[%clk 0:01:07]} 32. Re2 {[%clk 0:00:17]}  Ne4 {[%clk 0:00:11]} 33. Rxe4 {[%clk 0:00:13]}  Rd1+ {[%clk 0:00:09]} 34. Kf2 {[%clk 0:00:13]}  Bc7 {[%clk 0:00:09]} 35. Ba3 {[%clk 0:00:12]}  Rd2+ {[%clk 0:00:07]} 36. Ke3 {[%clk 0:00:11]}  Rxa2 {[%clk 0:00:03]} 37. Re7+ {[%clk 0:00:11]}  Kg8 {[%clk 0:00:04]} 38. Rxc7 {[%clk 0:00:12]} 1-0


[Site "https://www.chess.com"]

[Event "Titled Tuesday Blitz January 31 Early 2023"]
[White "Zong, Davis"]
[Black "Zaichenko, Daria"]
[WhiteFideId "30903955"]
[BlackFideId "4197453"]
[WhiteElo "2151"]
[BlackElo "2104"]
[Result "1-0"]
[Round "10"]
[TimeControl "180+2"]
[Date "2023.01.31"]
[WhiteClock "0:00:10"]
[BlackClock "0:00:16"]

1. d4 {[%clk 0:03:00]}  d5 {[%clk 0:02:56]} 2. c4 {[%clk 0:03:01]}  e6 {[%clk 0:02:54]} 3. Nc3 {[%clk 0:03:00]}  Be7 {[%clk 0:02:55]} 4. Nf3 {[%clk 0:02:58]}  Nf6 {[%clk 0:02:54]} 5. Bf4 {[%clk 0:02:58]}  O-O {[%clk 0:02:47]} 6. e3 {[%clk 0:02:58]}  Ne4 {[%clk 0:02:43]} 7. Bd3 {[%clk 0:02:53]}  Nxc3 {[%clk 0:02:39]} 8. bxc3 {[%clk 0:02:53]}  dxc4 {[%clk 0:02:39]} 9. Bxc4 {[%clk 0:02:53]}  c5 {[%clk 0:02:39]} 10. O-O {[%clk 0:02:51]}  Nc6 {[%clk 0:02:38]} 11. Bd3 {[%clk 0:02:48]}  cxd4 {[%clk 0:02:38]} 12. cxd4 {[%clk 0:02:45]}  h6 {[%clk 0:02:37]} 13. Rc1 {[%clk 0:02:43]}  Bd7 {[%clk 0:02:36]} 14. Bb1 {[%clk 0:02:43]}  Qa5 {[%clk 0:02:34]} 15. Qd3 {[%clk 0:02:40]}  f5 {[%clk 0:02:29]} 16. e4 {[%clk 0:02:24]}  Nb4 {[%clk 0:02:27]} 17. Qe3 {[%clk 0:02:18]}  g5 {[%clk 0:02:16]} 18. Bc7 {[%clk 0:02:00]}  Qb5 {[%clk 0:02:07]} 19. exf5 {[%clk 0:01:52]}  Nd5 {[%clk 0:02:02]} 20. Qe5 {[%clk 0:01:26]}  Nxc7 {[%clk 0:02:00]} 21. Rxc7 {[%clk 0:01:22]}  Bf6 {[%clk 0:01:48]} 22. Qxb5 {[%clk 0:00:56]}  Bxb5 {[%clk 0:01:47]} 23. Re1 {[%clk 0:00:48]}  exf5 {[%clk 0:01:45]} 24. Bxf5 {[%clk 0:00:49]}  Bc6 {[%clk 0:01:43]} 25. Be6+ {[%clk 0:00:46]}  Kh8 {[%clk 0:01:41]} 26. d5 {[%clk 0:00:47]}  Bb5 {[%clk 0:01:23]} 27. Rxb7 {[%clk 0:00:46]}  a6 {[%clk 0:01:23]} 28. h3 {[%clk 0:00:41]}  Rad8 {[%clk 0:01:19]} 29. Rc1 {[%clk 0:00:41]}  Rb8 {[%clk 0:01:12]} 30. Ra7 {[%clk 0:00:39]}  Ra8 {[%clk 0:01:12]} 31. Rac7 {[%clk 0:00:39]}  Bd8 {[%clk 0:01:08]} 32. Rb7 {[%clk 0:00:39]}  Ba5 {[%clk 0:01:07]} 33. Ne5 {[%clk 0:00:36]}  Rf6 {[%clk 0:01:01]} 34. a4 {[%clk 0:00:26]}  Bxa4 {[%clk 0:00:55]} 35. Ng4 {[%clk 0:00:23]}  Rf4 {[%clk 0:00:50]} 36. g3 {[%clk 0:00:21]}  Rb4 {[%clk 0:00:24]} 37. Rxb4 {[%clk 0:00:15]}  Bxb4 {[%clk 0:00:25]} 38. Rc7 {[%clk 0:00:15]}  Bd6 {[%clk 0:00:20]} 39. Rb7 {[%clk 0:00:11]}  h5 {[%clk 0:00:17]} 40. Nf6 {[%clk 0:00:11]}  h4 {[%clk 0:00:16]} 41. Rh7# {[%clk 0:00:10]} 1-0


[Site "https://www.chess.com"]

[Event "Titled Tuesday Blitz January 31 Early 2023"]
[White "Nguyen Hong Nhung"]
[Black "Fajdetic, Hrvoje"]
[WhiteFideId "12412201"]
[BlackFideId "14501945"]
[WhiteElo "2003"]
[BlackElo "2151"]
[Result "1-0"]
[Round "10"]
[TimeControl "180+2"]
[Date "2023.01.31"]
[WhiteClock "0:01:41"]
[BlackClock "0:00:42"]

1. e4 {[%clk 0:02:58]}  c5 {[%clk 0:02:58]} 2. Nc3 {[%clk 0:02:58]}  a6 {[%clk 0:02:50]} 3. a4 {[%clk 0:02:58]}  Nc6 {[%clk 0:02:50]} 4. f4 {[%clk 0:02:58]}  g6 {[%clk 0:02:49]} 5. Nf3 {[%clk 0:02:58]}  Bg7 {[%clk 0:02:49]} 6. Bc4 {[%clk 0:02:59]}  e6 {[%clk 0:02:49]} 7. O-O {[%clk 0:02:59]}  Nge7 {[%clk 0:02:49]} 8. d3 {[%clk 0:03:00]}  d5 {[%clk 0:02:48]} 9. Bb3 {[%clk 0:02:58]}  O-O {[%clk 0:02:46]} 10. Qe1 {[%clk 0:02:58]}  Nd4 {[%clk 0:02:40]} 11. Nxd4 {[%clk 0:02:58]}  Bxd4+ {[%clk 0:02:41]} 12. Kh1 {[%clk 0:02:57]}  Bg7 {[%clk 0:02:10]} 13. Qh4 {[%clk 0:02:53]}  d4 {[%clk 0:02:06]} 14. Ne2 {[%clk 0:02:52]}  Nc6 {[%clk 0:02:04]} 15. Qg3 {[%clk 0:02:51]}  Na5 {[%clk 0:01:58]} 16. Ba2 {[%clk 0:02:50]}  b5 {[%clk 0:01:57]} 17. axb5 {[%clk 0:02:47]}  axb5 {[%clk 0:01:56]} 18. Bd2 {[%clk 0:02:48]}  Nc6 {[%clk 0:01:52]} 19. f5 {[%clk 0:02:46]}  Rxa2 {[%clk 0:01:40]} 20. Rxa2 {[%clk 0:02:45]}  exf5 {[%clk 0:01:40]} 21. exf5 {[%clk 0:02:34]}  Bxf5 {[%clk 0:01:41]} 22. Rxf5 {[%clk 0:02:32]}  gxf5 {[%clk 0:01:42]} 23. Nf4 {[%clk 0:02:24]}  Ne5 {[%clk 0:01:09]} 24. Nh5 {[%clk 0:02:08]}  Ng6 {[%clk 0:01:09]} 25. Ra1 {[%clk 0:02:06]}  Be5 {[%clk 0:01:00]} 26. Qf3 {[%clk 0:01:55]}  Qh4 {[%clk 0:00:54]} 27. g3 {[%clk 0:01:43]}  Qg4 {[%clk 0:00:52]} 28. Rf1 {[%clk 0:01:42]}  Ra8 {[%clk 0:00:42]} 29. Qxa8+ {[%clk 0:01:41]} 1-0


[Site "https://www.chess.com"]

[Event "Titled Tuesday Blitz January 31 Early 2023"]
[White "Rose, Felix"]
[Black "Ivanova, Karina"]
[WhiteFideId "5105722"]
[BlackFideId "24139750"]
[WhiteElo "2091"]
[BlackElo "2085"]
[Result "1/2-1/2"]
[Round "10"]
[TimeControl "180+2"]
[Date "2023.01.31"]
[WhiteClock "0:00:20"]
[BlackClock "0:00:14"]

1. d4 {[%clk 0:03:00]}  Nf6 {[%clk 0:02:57]} 2. Nf3 {[%clk 0:02:57]}  e6 {[%clk 0:02:56]} 3. Bf4 {[%clk 0:02:53]}  c5 {[%clk 0:02:51]} 4. e3 {[%clk 0:02:53]}  b6 {[%clk 0:02:47]} 5. Nbd2 {[%clk 0:02:51]}  Bb7 {[%clk 0:02:47]} 6. c3 {[%clk 0:02:51]}  Nc6 {[%clk 0:02:46]} 7. Bd3 {[%clk 0:02:50]}  d5 {[%clk 0:02:46]} 8. h4 {[%clk 0:02:48]}  Bd6 {[%clk 0:02:45]} 9. Bxd6 {[%clk 0:02:42]}  Qxd6 {[%clk 0:02:39]} 10. dxc5 {[%clk 0:02:31]}  bxc5 {[%clk 0:02:34]} 11. e4 {[%clk 0:02:31]}  Rd8 {[%clk 0:02:28]} 12. Bb5 {[%clk 0:02:25]}  dxe4 {[%clk 0:02:17]} 13. Ng5 {[%clk 0:02:25]}  e3 {[%clk 0:02:12]} 14. fxe3 {[%clk 0:02:20]}  Qg3+ {[%clk 0:02:11]} 15. Kf1 {[%clk 0:02:18]}  Qxe3 {[%clk 0:02:03]} 16. Ngf3 {[%clk 0:02:15]}  O-O {[%clk 0:01:59]} 17. Qe2 {[%clk 0:02:13]}  Ng4 {[%clk 0:01:49]} 18. Qxe3 {[%clk 0:02:08]}  Nxe3+ {[%clk 0:01:49]} 19. Kf2 {[%clk 0:02:08]}  Nd5 {[%clk 0:01:47]} 20. Ne4 {[%clk 0:02:02]}  a6 {[%clk 0:01:38]} 21. Nxc5 {[%clk 0:01:45]}  axb5 {[%clk 0:01:37]} 22. Nxb7 {[%clk 0:01:44]}  Rb8 {[%clk 0:01:35]} 23. Nc5 {[%clk 0:01:38]}  Rfc8 {[%clk 0:01:34]} 24. Nd3 {[%clk 0:01:27]}  f6 {[%clk 0:01:24]} 25. a4 {[%clk 0:01:15]}  bxa4 {[%clk 0:01:21]} 26. Rxa4 {[%clk 0:01:14]}  e5 {[%clk 0:01:16]} 27. Nd2 {[%clk 0:01:07]}  Nb6 {[%clk 0:01:12]} 28. Ra6 {[%clk 0:00:55]}  Rd8 {[%clk 0:01:10]} 29. Ke2 {[%clk 0:00:53]}  f5 {[%clk 0:01:01]} 30. Rf1 {[%clk 0:00:48]}  g6 {[%clk 0:00:59]} 31. Nc5 {[%clk 0:00:28]}  e4 {[%clk 0:00:53]} 32. g4 {[%clk 0:00:20]}  Rd5 {[%clk 0:00:40]} 33. gxf5 {[%clk 0:00:20]}  Rxc5 {[%clk 0:00:39]} 34. fxg6 {[%clk 0:00:21]}  hxg6 {[%clk 0:00:38]} 35. Nxe4 {[%clk 0:00:21]}  Re5 {[%clk 0:00:20]} 36. Rf4 {[%clk 0:00:22]}  Rbe8 {[%clk 0:00:15]} 37. Rxb6 {[%clk 0:00:20]}  Rxe4+ {[%clk 0:00:15]} 38. Rxe4 {[%clk 0:00:20]}  Rxe4+ {[%clk 0:00:16]} 39. Kf3 {[%clk 0:00:20]}  Re6 {[%clk 0:00:16]} 40. Kg3 {[%clk 0:00:18]}  Kf7 {[%clk 0:00:15]} 41. b4 {[%clk 0:00:18]}  Ne5 {[%clk 0:00:14]} 42. Rxe6 {[%clk 0:00:18]}  Kxe6 {[%clk 0:00:14]} 43. Kf4 {[%clk 0:00:18]}  Nc4 {[%clk 0:00:13]} 44. Kg5 {[%clk 0:00:18]}  Kf7 {[%clk 0:00:13]} 45. h5 {[%clk 0:00:17]}  gxh5 {[%clk 0:00:13]} 46. Kxh5 {[%clk 0:00:18]}  Ke6 {[%clk 0:00:13]} 47. Kg4 {[%clk 0:00:19]}  Kd5 {[%clk 0:00:14]} 48. Kf3 {[%clk 0:00:20]}  Kc6 {[%clk 0:00:14]} 49. Ke4 {[%clk 0:00:20]}  Kb5 {[%clk 0:00:15]} 50. Kd4 {[%clk 0:00:20]}  Nb2 {[%clk 0:00:15]} 51. Kd5 {[%clk 0:00:20]}  Nc4 {[%clk 0:00:15]} 52. Kd4 {[%clk 0:00:21]}  Na3 {[%clk 0:00:15]} 53. Kd5 {[%clk 0:00:20]}  Nc4 {[%clk 0:00:15]} 54. Ke4 {[%clk 0:00:21]}  Nb2 {[%clk 0:00:14]} 55. Kd4 {[%clk 0:00:21]}  Nc4 {[%clk 0:00:14]} 56. Kd3 {[%clk 0:00:22]}  Ne5+ {[%clk 0:00:14]} 57. Ke4 {[%clk 0:00:22]}  Nc6 {[%clk 0:00:14]} 58. Kd5 {[%clk 0:00:21]}  Nxb4+ {[%clk 0:00:14]} 59. cxb4 {[%clk 0:00:20]}  Kxb4 {[%clk 0:00:14]} 1/2-1/2


[Site "https://www.chess.com"]